[Event "Late-Titled-Tuesday-Blitz-June-25-2024"]
[Site "Chess.com"]
[Date "2024.06.25"]
[Round "3"]
[White "MatthewG-p4p"]
[Black "ivanquiroga"]
[Result "1-0"]
[WhiteElo "2916"]
[BlackElo "2516"]
[TimeControl "180+1"]
[EndTime "14:28:14 PDT"]
[Termination "MatthewG-p4p won by resignation"]

1. f4 {[%clk 0:03:00.9]} 1... d5 {[%clk 0:02:56.2]} 2. Nf3 {[%clk 0:03:00.4]}
2... Nf6 {[%clk 0:02:55.9]} 3. g3 {[%clk 0:03:00.6]} 3... g6 {[%clk 0:02:55.2]}
4. Bg2 {[%clk 0:02:59.9]} 4... Bg7 {[%clk 0:02:56.1]} 5. O-O {[%clk 0:03:00.6]}
5... O-O {[%clk 0:02:56.4]} 6. d3 {[%clk 0:03:01.5]} 6... c5 {[%clk 0:02:55.1]}
7. Nc3 {[%clk 0:03:01]} 7... d4 {[%clk 0:02:54.1]} 8. Na4 {[%clk 0:03:00.9]}
8... Qc7 {[%clk 0:02:51.5]} 9. c4 {[%clk 0:03:01]} 9... Bd7 {[%clk 0:02:37.1]}
10. Ne5 {[%clk 0:02:58.6]} 10... Nc6 {[%clk 0:02:32.2]} 11. Nxd7 {[%clk
0:02:58.1]} 11... Nxd7 {[%clk 0:02:33.1]} 12. a3 {[%clk 0:02:58.3]} 12... Rab8
{[%clk 0:02:26.9]} 13. Rb1 {[%clk 0:02:58.2]} 13... b6 {[%clk 0:02:22.8]} 14. b4
{[%clk 0:02:57.8]} 14... Qd6 {[%clk 0:02:21.6]} 15. Bd2 {[%clk 0:02:55.1]} 15...
e5 {[%clk 0:02:13.4]} 16. e4 {[%clk 0:02:50.3]} 16... dxe3 {[%clk 0:02:12.2]}
17. Bxe3 {[%clk 0:02:49.9]} 17... Nd4 {[%clk 0:02:09.8]} 18. Nc3 {[%clk
0:02:47.8]} 18... exf4 {[%clk 0:01:45.9]} 19. Bxf4 {[%clk 0:02:45.8]} 19... Be5
{[%clk 0:01:45.6]} 20. Ne4 {[%clk 0:02:44.7]} 20... Qe7 {[%clk 0:01:42.1]} 21.
Bg5 {[%clk 0:02:39.4]} 21... f6 {[%clk 0:01:29.6]} 22. Bh6 {[%clk 0:02:38.9]}
22... Rfe8 {[%clk 0:01:26.2]} 23. Nc3 {[%clk 0:02:30.4]} 23... f5 {[%clk
0:01:21.1]} 24. Nd5 {[%clk 0:02:29.1]} 24... Qd6 {[%clk 0:01:17.9]} 25. Qd2
{[%clk 0:02:15.5]} 25... Nf6 {[%clk 0:01:13.7]} 26. Rbe1 {[%clk 0:02:11.6]}
26... Nxd5 {[%clk 0:01:11.7]} 27. Bxd5+ {[%clk 0:02:11.5]} 27... Kh8 {[%clk
0:01:12.3]} 28. g4 {[%clk 0:02:07.4]} 28... f4 {[%clk 0:00:49.6]} 29. Bg5 {[%clk
0:02:03]} 29... Bf6 {[%clk 0:00:45.9]} 30. Bxf4 {[%clk 0:02:01.1]} 30... Be5
{[%clk 0:00:32.4]} 31. Bg5 {[%clk 0:01:51.9]} 31... Bg7 {[%clk 0:00:31.9]} 32.
Bf4 {[%clk 0:00:55.4]} 32... Be5 {[%clk 0:00:31.4]} 33. Bxe5+ {[%clk 0:00:44.3]}
33... Rxe5 {[%clk 0:00:31.2]} 34. Qf4 {[%clk 0:00:45]} 34... Rbe8 {[%clk
0:00:26.3]} 35. Rxe5 {[%clk 0:00:44.6]} 35... Qxe5 {[%clk 0:00:26.3]} 36. Qxe5+
{[%clk 0:00:42.7]} 36... Rxe5 {[%clk 0:00:27.2]} 37. Rf8+ {[%clk 0:00:43]} 37...
Kg7 {[%clk 0:00:27.5]} 38. Rf7+ {[%clk 0:00:43.9]} 38... Kh6 {[%clk 0:00:28]}
39. Rxa7 {[%clk 0:00:44.6]} 39... Kg5 {[%clk 0:00:22.8]} 40. Rxh7 {[%clk
0:00:37.6]} 40... Kxg4 {[%clk 0:00:20.9]} 41. Rg7 {[%clk 0:00:38.2]} 41... g5
{[%clk 0:00:20.8]} 42. Be4 {[%clk 0:00:36.7]} 42... Ne6 {[%clk 0:00:15.2]} 43.
Rg6 {[%clk 0:00:31.4]} 43... Kf4 {[%clk 0:00:09.2]} 44. Kf2 {[%clk 0:00:31.1]}
44... cxb4 {[%clk 0:00:06]} 45. axb4 {[%clk 0:00:30]} 45... g4 {[%clk
0:00:06.3]} 46. Rf6+ {[%clk 0:00:22.5]} 46... Kg5 {[%clk 0:00:06]} 47. Rf7
{[%clk 0:00:22.8]} 47... Nf4 {[%clk 0:00:04.8]} 48. Ke3 {[%clk 0:00:21.2]} 48...
Nh3 {[%clk 0:00:03.9]} 49. Rb7 {[%clk 0:00:19.5]} 49... Re6 {[%clk 0:00:04.2]}
50. c5 {[%clk 0:00:19.4]} 50... bxc5 {[%clk 0:00:04.2]} 51. bxc5 {[%clk
0:00:20.3]} 51... Nf4 {[%clk 0:00:03.9]} 52. c6 {[%clk 0:00:20.9]} 52... Ng6
{[%clk 0:00:03.7]} 53. c7 {[%clk 0:00:19.4]} 53... Ne7 {[%clk 0:00:04.2]} 54.
Kd2 {[%clk 0:00:14.3]} 54... Rd6 {[%clk 0:00:04.5]} 55. Rb5+ {[%clk 0:00:08.9]}
55... Kf6 {[%clk 0:00:04.7]} 56. Rb8 {[%clk 0:00:09.4]} 56... Ke6 {[%clk
0:00:04.9]} 57. Re8 {[%clk 0:00:09.3]} 57... Kd7 {[%clk 0:00:04.8]} 58. Rxe7+
{[%clk 0:00:09.7]} 58... Kxe7 {[%clk 0:00:05.7]} 59. c8=Q {[%clk 0:00:10.1]} 1-0

[Event "Late-Titled-Tuesday-Blitz-June-25-2024"]
[Site "Chess.com"]
[Date "2024.06.25"]
[Round "3"]
[White "Leebit02"]
[Black "VirtualCoach"]
[Result "1-0"]
[WhiteElo "2580"]
[BlackElo "2339"]
[TimeControl "180+1"]
[EndTime "14:28:16 PDT"]
[Termination "Leebit02 won on time"]

1. e4 {[%clk 0:02:55.3]} 1... c5 {[%clk 0:02:59.3]} 2. Nf3 {[%clk 0:02:55.3]}
2... d6 {[%clk 0:02:58.4]} 3. d4 {[%clk 0:02:55.6]} 3... cxd4 {[%clk 0:02:58.8]}
4. Nxd4 {[%clk 0:02:56.3]} 4... Nf6 {[%clk 0:02:59.1]} 5. Nc3 {[%clk 0:02:56.9]}
5... a6 {[%clk 0:02:58.6]} 6. Be2 {[%clk 0:02:57.3]} 6... e5 {[%clk 0:02:57.8]}
7. Nb3 {[%clk 0:02:57.7]} 7... Be6 {[%clk 0:02:56.2]} 8. Qd3 {[%clk 0:02:56.6]}
8... b5 {[%clk 0:02:54.6]} 9. a4 {[%clk 0:02:54]} 9... Bc4 {[%clk 0:02:36.6]}
10. Qe3 {[%clk 0:02:48.3]} 10... Nbd7 {[%clk 0:02:27.2]} 11. O-O {[%clk
0:02:16.2]} 11... Be7 {[%clk 0:02:26.1]} 12. Bxc4 {[%clk 0:01:52]} 12... bxc4
{[%clk 0:02:25.4]} 13. Nd2 {[%clk 0:01:52.7]} 13... Rc8 {[%clk 0:02:22.7]} 14.
Qe2 {[%clk 0:01:52.7]} 14... Qc7 {[%clk 0:02:21.8]} 15. Re1 {[%clk 0:01:51.7]}
15... O-O {[%clk 0:02:20.8]} 16. Nf1 {[%clk 0:01:52]} 16... Nc5 {[%clk
0:02:18.5]} 17. Bg5 {[%clk 0:01:47.6]} 17... Qb7 {[%clk 0:02:15]} 18. Bxf6
{[%clk 0:01:38.5]} 18... Bxf6 {[%clk 0:02:14.9]} 19. Ra2 {[%clk 0:01:32.6]}
19... Ne6 {[%clk 0:02:13]} 20. Ne3 {[%clk 0:01:29.7]} 20... Nd4 {[%clk
0:02:11.2]} 21. Qg4 {[%clk 0:01:23]} 21... Bd8 {[%clk 0:02:03.1]} 22. Ncd5
{[%clk 0:01:17.9]} 22... Ne6 {[%clk 0:01:29]} 23. Nf5 {[%clk 0:01:13]} 23... Qd7
{[%clk 0:01:17.7]} 24. Rd1 {[%clk 0:01:12.4]} 24... g6 {[%clk 0:01:11.7]} 25.
Nxd6 {[%clk 0:00:59.5]} 25... Rc6 {[%clk 0:00:56.2]} 26. Nf5 {[%clk 0:00:57.9]}
26... Kh8 {[%clk 0:00:47.6]} 27. Nfe3 {[%clk 0:00:54.2]} 27... Qb7 {[%clk
0:00:38.5]} 28. Qg3 {[%clk 0:00:47.9]} 28... f6 {[%clk 0:00:36.5]} 29. c3 {[%clk
0:00:35.8]} 29... Nc5 {[%clk 0:00:34]} 30. Qf3 {[%clk 0:00:32.3]} 30... Nd3
{[%clk 0:00:33.1]} 31. Nxc4 {[%clk 0:00:30.4]} 31... Qb3 {[%clk 0:00:17.6]} 32.
Raa1 {[%clk 0:00:26.5]} 32... Nxb2 {[%clk 0:00:17.7]} 33. Nxb2 {[%clk
0:00:25.9]} 33... Qxb2 {[%clk 0:00:18.2]} 34. Qd3 {[%clk 0:00:20.8]} 34... Ba5
{[%clk 0:00:16]} 35. Rdb1 {[%clk 0:00:19.2]} 35... Rxc3 {[%clk 0:00:12.2]} 36.
Nxc3 {[%clk 0:00:18.2]} 36... Qxc3 {[%clk 0:00:13.1]} 37. Qxc3 {[%clk 0:00:18]}
37... Bxc3 {[%clk 0:00:14]} 38. Ra2 {[%clk 0:00:18.4]} 38... Rd8 {[%clk
0:00:14]} 39. Rc2 {[%clk 0:00:18.3]} 39... Ba5 {[%clk 0:00:13.7]} 40. g3 {[%clk
0:00:18.2]} 40... g5 {[%clk 0:00:13.6]} 41. Kg2 {[%clk 0:00:18.5]} 41... Kg7
{[%clk 0:00:14]} 42. Rc6 {[%clk 0:00:18.7]} 42... Rd7 {[%clk 0:00:11.7]} 43.
Rxa6 {[%clk 0:00:18.9]} 43... Bc3 {[%clk 0:00:10.6]} 44. Rc6 {[%clk 0:00:18.6]}
44... Bd4 {[%clk 0:00:10.2]} 45. a5 {[%clk 0:00:18.7]} 45... Ra7 {[%clk
0:00:10]} 46. a6 {[%clk 0:00:19]} 46... Kg6 {[%clk 0:00:10.2]} 47. Rb7 {[%clk
0:00:19.5]} 47... Ra8 {[%clk 0:00:10]} 48. Kf3 {[%clk 0:00:14.9]} 48... h5
{[%clk 0:00:10.4]} 49. h3 {[%clk 0:00:15.4]} 49... Ba1 {[%clk 0:00:05.4]} 50. a7
{[%clk 0:00:15]} 50... Bd4 {[%clk 0:00:04.8]} 51. Rcc7 {[%clk 0:00:15.3]} 51...
Rd8 {[%clk 0:00:01.9]} 52. Rg7+ {[%clk 0:00:15.1]} 1-0

[Event "Late-Titled-Tuesday-Blitz-June-25-2024"]
[Site "Chess.com"]
[Date "2024.06.25"]
[Round "3"]
[White "Murad_Ibrahimli"]
[Black "Mackster23"]
[Result "0-1"]
[WhiteElo "2878"]
[BlackElo "2668"]
[TimeControl "180+1"]
[EndTime "14:28:19 PDT"]
[Termination "Mackster23 won by resignation"]

1. d4 {[%clk 0:02:59.3]} 1... Nf6 {[%clk 0:02:59.8]} 2. Nf3 {[%clk 0:02:59.4]}
2... d5 {[%clk 0:02:59.8]} 3. c4 {[%clk 0:02:58.7]} 3... e6 {[%clk 0:02:59.9]}
4. Nbd2 {[%clk 0:02:58.3]} 4... Be7 {[%clk 0:02:50.8]} 5. g3 {[%clk 0:02:56.2]}
5... O-O {[%clk 0:02:50.1]} 6. Bg2 {[%clk 0:02:56.7]} 6... c5 {[%clk 0:02:45.2]}
7. dxc5 {[%clk 0:02:56.1]} 7... Bxc5 {[%clk 0:02:46.1]} 8. O-O {[%clk
0:02:56.4]} 8... Nc6 {[%clk 0:02:46.1]} 9. cxd5 {[%clk 0:02:56]} 9... Nxd5
{[%clk 0:02:42.2]} 10. a3 {[%clk 0:02:53.6]} 10... a5 {[%clk 0:02:27.1]} 11. e4
{[%clk 0:02:52.7]} 11... Nde7 {[%clk 0:02:22.7]} 12. b3 {[%clk 0:02:50.7]} 12...
Qd3 {[%clk 0:02:13.6]} 13. Bb2 {[%clk 0:02:48.4]} 13... Rd8 {[%clk 0:02:10.2]}
14. Rc1 {[%clk 0:02:48.1]} 14... Ba7 {[%clk 0:02:03]} 15. Rc3 {[%clk 0:02:48.1]}
15... Qd7 {[%clk 0:01:52.1]} 16. Qe2 {[%clk 0:02:38.4]} 16... Nd4 {[%clk
0:01:44.6]} 17. Nxd4 {[%clk 0:02:38.6]} 17... Bxd4 {[%clk 0:01:44.9]} 18. Rd3
{[%clk 0:02:37]} 18... e5 {[%clk 0:01:42.2]} 19. Nc4 {[%clk 0:02:31]} 19... Qc7
{[%clk 0:01:19.2]} 20. Rc1 {[%clk 0:01:58.2]} 20... Nc6 {[%clk 0:01:18.8]} 21.
Ne3 {[%clk 0:01:36.9]} 21... Be6 {[%clk 0:00:58.5]} 22. Nd5 {[%clk 0:01:33.8]}
22... Qd6 {[%clk 0:00:59]} 23. h4 {[%clk 0:01:28.1]} 23... Rac8 {[%clk
0:00:52.5]} 24. Kh2 {[%clk 0:01:17.2]} 24... b5 {[%clk 0:00:49.2]} 25. Qd2
{[%clk 0:01:09.2]} 25... b4 {[%clk 0:00:24.7]} 26. axb4 {[%clk 0:01:06.9]} 26...
Bxd5 {[%clk 0:00:21.2]} 27. exd5 {[%clk 0:01:04.8]} 27... Nxb4 {[%clk
0:00:21.5]} 28. Rxd4 {[%clk 0:00:55.3]} 28... exd4 {[%clk 0:00:20.8]} 29. Qxd4
{[%clk 0:00:55.6]} 29... f6 {[%clk 0:00:19]} 30. Rxc8 {[%clk 0:00:54.4]} 30...
Rxc8 {[%clk 0:00:19.1]} 31. Bh3 {[%clk 0:00:55.3]} 31... Rd8 {[%clk 0:00:11.5]}
32. Be6+ {[%clk 0:00:55.4]} 32... Kh8 {[%clk 0:00:11.6]} 33. Bc3 {[%clk
0:00:47.7]} 33... Nxd5 {[%clk 0:00:10.7]} 34. Bxa5 {[%clk 0:00:47.9]} 34... Ra8
{[%clk 0:00:07.3]} 35. Bxd5 {[%clk 0:00:38.9]} 35... Rxa5 {[%clk 0:00:07.1]} 36.
Qe4 {[%clk 0:00:37.1]} 36... Qxd5 {[%clk 0:00:05.9]} 37. Qe1 {[%clk 0:00:35.1]}
37... Ra8 {[%clk 0:00:05.3]} 38. b4 {[%clk 0:00:34.1]} 38... h6 {[%clk
0:00:03.9]} 39. Qe7 {[%clk 0:00:33.8]} 39... Rb8 {[%clk 0:00:03.3]} 40. g4
{[%clk 0:00:30.4]} 40... Qb7 {[%clk 0:00:03.4]} 41. Qe3 {[%clk 0:00:28.4]} 41...
Qxb4 {[%clk 0:00:03.4]} 42. f3 {[%clk 0:00:29.3]} 42... Qb7 {[%clk 0:00:03]} 43.
Kg3 {[%clk 0:00:29.4]} 43... Qc7+ {[%clk 0:00:03.3]} 44. Kh3 {[%clk 0:00:30.3]}
44... Rc8 {[%clk 0:00:03.6]} 45. h5 {[%clk 0:00:30.2]} 45... Qe5 {[%clk
0:00:04]} 46. Qd3 {[%clk 0:00:30]} 46... Re8 {[%clk 0:00:04.3]} 47. Qg6 {[%clk
0:00:29.4]} 47... Qe7 {[%clk 0:00:04.2]} 48. Kg2 {[%clk 0:00:21.2]} 48... Kg8
{[%clk 0:00:04.9]} 49. Kh3 {[%clk 0:00:20.8]} 49... Qf7 {[%clk 0:00:05.5]} 50.
Qd3 {[%clk 0:00:20.4]} 50... Re5 {[%clk 0:00:05.4]} 51. Qd8+ {[%clk 0:00:20.1]}
51... Qe8 {[%clk 0:00:06.1]} 52. Qc7 {[%clk 0:00:18.9]} 52... Re3 {[%clk
0:00:06]} 53. Kg2 {[%clk 0:00:16.8]} 53... Re2+ {[%clk 0:00:05.9]} 54. Kh3
{[%clk 0:00:15.9]} 54... Qe5 {[%clk 0:00:05.9]} 55. Qc8+ {[%clk 0:00:12.4]}
55... Kh7 {[%clk 0:00:05.9]} 56. Qf5+ {[%clk 0:00:12.8]} 56... Qxf5 {[%clk
0:00:06.1]} 57. gxf5 {[%clk 0:00:13.7]} 57... Re5 {[%clk 0:00:06.5]} 0-1

[Event "Late-Titled-Tuesday-Blitz-June-25-2024"]
[Site "Chess.com"]
[Date "2024.06.25"]
[Round "3"]
[White "UnTucopalaTimba"]
[Black "TheoSlade"]
[Result "1-0"]
[WhiteElo "2139"]
[BlackElo "2477"]
[TimeControl "180+1"]
[EndTime "14:28:19 PDT"]
[Termination "UnTucopalaTimba won by checkmate"]

1. e4 {[%clk 0:03:00]} 1... e5 {[%clk 0:02:59.5]} 2. Nf3 {[%clk 0:02:59.6]} 2...
Nc6 {[%clk 0:03:00.1]} 3. Bb5 {[%clk 0:02:59.6]} 3... g6 {[%clk 0:03:00.1]} 4.
c3 {[%clk 0:02:57]} 4... a6 {[%clk 0:03:00.6]} 5. Ba4 {[%clk 0:02:56.8]} 5...
Bg7 {[%clk 0:02:59.4]} 6. d4 {[%clk 0:02:55.6]} 6... exd4 {[%clk 0:02:59.4]} 7.
cxd4 {[%clk 0:02:55.6]} 7... b5 {[%clk 0:02:59.8]} 8. Bb3 {[%clk 0:02:50.4]}
8... d6 {[%clk 0:02:52.3]} 9. h3 {[%clk 0:02:49.6]} 9... Nge7 {[%clk 0:02:49.6]}
10. Bg5 {[%clk 0:02:48.2]} 10... O-O {[%clk 0:02:46.6]} 11. Nc3 {[%clk
0:02:47.8]} 11... h6 {[%clk 0:02:43]} 12. Bh4 {[%clk 0:02:47.4]} 12... Na5
{[%clk 0:02:32.7]} 13. Bc2 {[%clk 0:02:42.7]} 13... g5 {[%clk 0:02:28.4]} 14.
Bg3 {[%clk 0:02:41.7]} 14... Nc4 {[%clk 0:02:16.6]} 15. Rb1 {[%clk 0:02:24.6]}
15... c5 {[%clk 0:02:11.8]} 16. O-O {[%clk 0:02:05.3]} 16... cxd4 {[%clk
0:02:06.8]} 17. Nxd4 {[%clk 0:02:05.2]} 17... Qb6 {[%clk 0:02:03.5]} 18. Nf3
{[%clk 0:01:49]} 18... Bb7 {[%clk 0:01:58]} 19. Qd3 {[%clk 0:01:37.1]} 19...
Rfd8 {[%clk 0:01:41.3]} 20. Nd5 {[%clk 0:01:25.9]} 20... Bxd5 {[%clk 0:01:33]}
21. exd5 {[%clk 0:01:25.8]} 21... Ng6 {[%clk 0:01:32.7]} 22. b3 {[%clk
0:01:22.2]} 22... Na3 {[%clk 0:01:31]} 23. Rbd1 {[%clk 0:01:16.8]} 23... Rac8
{[%clk 0:01:27.1]} 24. Bb1 {[%clk 0:01:16.4]} 24... Rc3 {[%clk 0:01:21.1]} 25.
Qe2 {[%clk 0:01:10.8]} 25... Nxb1 {[%clk 0:01:19.3]} 26. Rxb1 {[%clk 0:01:10.7]}
26... Rdc8 {[%clk 0:01:18.6]} 27. Rfd1 {[%clk 0:01:05.9]} 27... Rc2 {[%clk
0:01:18.6]} 28. Rd2 {[%clk 0:01:05.7]} 28... Rc1+ {[%clk 0:01:11.4]} 29. Rxc1
{[%clk 0:01:03.9]} 29... Rxc1+ {[%clk 0:01:12.3]} 30. Kh2 {[%clk 0:01:04]} 30...
Kf8 {[%clk 0:01:03.7]} 31. Rc2 {[%clk 0:01:02.3]} 31... Rxc2 {[%clk 0:01:01.3]}
32. Qxc2 {[%clk 0:01:02.4]} 32... Ne7 {[%clk 0:00:54.3]} 33. Qh7 {[%clk
0:00:50.5]} 33... Nxd5 {[%clk 0:00:50.5]} 34. Qd3 {[%clk 0:00:46.6]} 34... Qc6
{[%clk 0:00:34.1]} 35. Nd4 {[%clk 0:00:44]} 35... Bxd4 {[%clk 0:00:30.1]} 36.
Qxd4 {[%clk 0:00:44]} 36... Kg8 {[%clk 0:00:29.3]} 37. a3 {[%clk 0:00:40.1]}
37... Qc5 {[%clk 0:00:29.6]} 38. Qe4 {[%clk 0:00:38.6]} 38... Nf6 {[%clk
0:00:27.7]} 39. Qb7 {[%clk 0:00:36.2]} 39... Nh5 {[%clk 0:00:21.6]} 40. Qb8+
{[%clk 0:00:34]} 40... Kg7 {[%clk 0:00:20.4]} 41. Bxd6 {[%clk 0:00:33.7]} 41...
Qxf2 {[%clk 0:00:14]} 42. Qf8+ {[%clk 0:00:32]} 42... Kg6 {[%clk 0:00:14.6]} 43.
Qg8+ {[%clk 0:00:29.6]} 43... Ng7 {[%clk 0:00:15.1]} 44. Be5 {[%clk 0:00:24.5]}
44... f6 {[%clk 0:00:15.4]} 45. Bg3 {[%clk 0:00:21]} 45... Qc5 {[%clk
0:00:15.8]} 46. b4 {[%clk 0:00:17.8]} 46... Qe3 {[%clk 0:00:13.2]} 47. Qc8
{[%clk 0:00:16.8]} 47... Qxa3 {[%clk 0:00:12.8]} 48. Qc2+ {[%clk 0:00:16.6]}
48... Kf7 {[%clk 0:00:07.9]} 49. Qc7+ {[%clk 0:00:15.5]} 49... Kg8 {[%clk
0:00:08.4]} 50. Qd8+ {[%clk 0:00:15]} 50... Kh7 {[%clk 0:00:07.6]} 51. Qe7
{[%clk 0:00:14.2]} 51... a5 {[%clk 0:00:06]} 52. Qxf6 {[%clk 0:00:12.5]} 52...
Qxb4 {[%clk 0:00:06.3]} 53. Bd6 {[%clk 0:00:10]} 53... Qe4 {[%clk 0:00:04.1]}
54. Be5 {[%clk 0:00:09.8]} 54... Qg6 {[%clk 0:00:04.6]} 55. Qb6 {[%clk
0:00:08.8]} 55... b4 {[%clk 0:00:04.7]} 56. Qxa5 {[%clk 0:00:08]} 56... Qf5
{[%clk 0:00:04.6]} 57. Qc7 {[%clk 0:00:06.4]} 57... b3 {[%clk 0:00:04.4]} 58.
Qxg7# {[%clk 0:00:06.1]} 1-0

[Event "Late-Titled-Tuesday-Blitz-June-25-2024"]
[Site "Chess.com"]
[Date "2024.06.25"]
[Round "3"]
[White "SebbyMeister"]
[Black "giomar27"]
[Result "1-0"]
[WhiteElo "2248"]
[BlackElo "2453"]
[TimeControl "180+1"]
[EndTime "14:28:21 PDT"]
[Termination "SebbyMeister won by resignation"]

1. e4 {[%clk 0:03:00.9]} 1... d6 {[%clk 0:02:57.3]} 2. d4 {[%clk 0:03:00.4]}
2... Nf6 {[%clk 0:02:56.8]} 3. Nc3 {[%clk 0:03:00]} 3... g6 {[%clk 0:02:56.9]}
4. Nf3 {[%clk 0:02:59.7]} 4... Bg7 {[%clk 0:02:54.7]} 5. Be2 {[%clk 0:02:56.2]}
5... O-O {[%clk 0:02:53.3]} 6. O-O {[%clk 0:02:56.5]} 6... a6 {[%clk 0:02:51.7]}
7. Bf4 {[%clk 0:02:53.1]} 7... b5 {[%clk 0:02:45.5]} 8. h3 {[%clk 0:02:52.7]}
8... Bb7 {[%clk 0:02:44.9]} 9. e5 {[%clk 0:02:51.7]} 9... Nfd7 {[%clk
0:02:32.5]} 10. a3 {[%clk 0:02:39.1]} 10... Nc6 {[%clk 0:02:03.8]} 11. exd6
{[%clk 0:01:59.2]} 11... cxd6 {[%clk 0:02:04]} 12. Qd2 {[%clk 0:01:52.5]} 12...
Rc8 {[%clk 0:02:03.3]} 13. Rfe1 {[%clk 0:01:51.2]} 13... Na5 {[%clk 0:01:55.7]}
14. b3 {[%clk 0:01:48.9]} 14... Qc7 {[%clk 0:01:54]} 15. Na2 {[%clk 0:01:42.1]}
15... Qxc2 {[%clk 0:01:53.9]} 16. Qxa5 {[%clk 0:01:40.4]} 16... Qxb3 {[%clk
0:01:45.4]} 17. Qb4 {[%clk 0:01:29.8]} 17... Qd5 {[%clk 0:01:43.9]} 18. Nc3
{[%clk 0:01:25.9]} 18... Qf5 {[%clk 0:01:39.2]} 19. Be3 {[%clk 0:01:20.6]} 19...
Nb6 {[%clk 0:01:38.8]} 20. Rac1 {[%clk 0:01:17.7]} 20... Nc4 {[%clk 0:01:37.7]}
21. a4 {[%clk 0:01:06.8]} 21... Nxe3 {[%clk 0:01:31.1]} 22. fxe3 {[%clk
0:01:07.7]} 22... Qg5 {[%clk 0:01:31.7]} 23. e4 {[%clk 0:00:56.5]} 23... Qe3+
{[%clk 0:01:28.2]} 24. Kh1 {[%clk 0:00:54.8]} 24... Qf4 {[%clk 0:01:17.7]} 25.
axb5 {[%clk 0:00:49.6]} 25... axb5 {[%clk 0:01:14.9]} 26. Qb2 {[%clk 0:00:30]}
26... b4 {[%clk 0:00:52.8]} 27. Nd5 {[%clk 0:00:20.8]} 27... Bxd5 {[%clk
0:00:48.6]} 28. exd5 {[%clk 0:00:20.7]} 28... h5 {[%clk 0:00:35.3]} 29. Rxc8
{[%clk 0:00:19.1]} 29... Rxc8 {[%clk 0:00:36.2]} 30. Qxb4 {[%clk 0:00:19.2]}
30... Bh6 {[%clk 0:00:35.5]} 31. Rb1 {[%clk 0:00:17.1]} 31... Qg3 {[%clk
0:00:34.9]} 32. Qe1 {[%clk 0:00:16.4]} 32... Qf4 {[%clk 0:00:33.4]} 33. Bf1
{[%clk 0:00:09]} 33... Re8 {[%clk 0:00:25.3]} 34. Rb3 {[%clk 0:00:04.3]} 34...
Bf8 {[%clk 0:00:24.9]} 35. Qb1 {[%clk 0:00:04]} 35... Bg7 {[%clk 0:00:24.8]} 36.
Rb8 {[%clk 0:00:03.7]} 36... Rxb8 {[%clk 0:00:23.4]} 37. Qxb8+ {[%clk
0:00:04.6]} 37... Kh7 {[%clk 0:00:24]} 38. Qb4 {[%clk 0:00:04.5]} 38... Bf6
{[%clk 0:00:24.2]} 39. Qd2 {[%clk 0:00:04.6]} 39... Qg3 {[%clk 0:00:24.2]} 40.
Qe1 {[%clk 0:00:04.2]} 40... Qf4 {[%clk 0:00:24.4]} 41. Bd3 {[%clk 0:00:04.5]}
41... Kg7 {[%clk 0:00:23.9]} 42. Qd2 {[%clk 0:00:04.4]} 42... Qg3 {[%clk
0:00:24]} 43. Qe1 {[%clk 0:00:04.3]} 43... Qf4 {[%clk 0:00:21.7]} 44. Qe4 {[%clk
0:00:02.3]} 44... Qg3 {[%clk 0:00:21.9]} 45. Kg1 {[%clk 0:00:01.4]} 45... Kg8
{[%clk 0:00:17.3]} 46. Qe1 {[%clk 0:00:01.6]} 46... Qf4 {[%clk 0:00:17.5]} 47.
Qf2 {[%clk 0:00:01.7]} 47... Qc1+ {[%clk 0:00:17]} 48. Kh2 {[%clk 0:00:01.8]}
48... Kg7 {[%clk 0:00:17.6]} 49. g3 {[%clk 0:00:02.5]} 49... Qc3 {[%clk
0:00:16.5]} 50. h4 {[%clk 0:00:03.2]} 50... Qc1 {[%clk 0:00:16.2]} 51. Qe2
{[%clk 0:00:03.3]} 51... Qc3 {[%clk 0:00:15.9]} 52. Kg2 {[%clk 0:00:04]} 52...
Qc1 {[%clk 0:00:15.4]} 53. Be4 {[%clk 0:00:04.1]} 53... Qc3 {[%clk 0:00:15.4]}
54. Qd3 {[%clk 0:00:04.4]} 54... Qc1 {[%clk 0:00:14.9]} 55. Qc2 {[%clk
0:00:04.7]} 55... Qe3 {[%clk 0:00:14.7]} 56. Qd3 {[%clk 0:00:04.3]} 56... Qc1
{[%clk 0:00:14.8]} 57. Qe2 {[%clk 0:00:04.9]} 57... Qc3 {[%clk 0:00:14.7]} 58.
Bd3 {[%clk 0:00:05.3]} 58... Qc1 {[%clk 0:00:14.8]} 59. Bb5 {[%clk 0:00:05.8]}
59... Qc3 {[%clk 0:00:14.9]} 60. Bc6 {[%clk 0:00:05.8]} 60... Qb2 {[%clk
0:00:14.5]} 61. Qxb2 {[%clk 0:00:04.3]} 61... Be5 {[%clk 0:00:11.3]} 62. Qc2
{[%clk 0:00:05.2]} 62... Bxd4 {[%clk 0:00:11.8]} 63. Nxd4 {[%clk 0:00:05.4]} 1-0